fUSD/lending_fUSD_20240424
["ID","MTS","AMOUNT","RATE_DAILY","PERIOD"]
[323413501,1713973848056,-500.0,0.00011232,2]
[323413503,1713973848065,-500.0,0.00011232,2]
[323413505,1713973848075,-500.0,0.00011232,2]
[323413508,1713973848085,-500.0,0.00011232,2]
[323413509,1713973848097,-500.0,0.00011232,2]
[323413512,1713973848106,-731.11,0.00011232,2]
[323413513,1713973848115,-500.0,0.00011232,2]
[323413515,1713973848124,-1747.26,0.00011232,2]
[323413517,1713973848135,-527.58,0.00011232,2]
[323413519,1713973848144,-750.07,0.00011232,2]
[323413522,1713973848154,-1164.73,0.00011232,2]
[323413523,1713973848163,-500.0,0.00011232,2]
[323413525,1713973848173,-500.0,0.00011232,2]
[323413527,1713973848182,-2166.34,0.00011232,2]
[323413529,1713973848191,-845.41,0.00011232,2]
[323413531,1713973848200,-500.0,0.00011232,2]
[323413533,1713973848209,-500.0,0.00011232,2]
[323413535,1713973848219,-500.0,0.00011232,2]
[323413537,1713973848229,-500.0,0.00011232,2]
[323413539,1713973848238,-500.0,0.00011232,2]
[323413541,1713973848248,-500.0,0.00011232,2]
[323413544,1713973848258,-818.75,0.00011232,2]
[323413545,1713973848267,-652.43,0.00011232,2]
[323413547,1713973848278,-500.0,0.00011232,2]
[323413549,1713973848288,-871.72,0.00011232,2]
[323413551,1713973848298,-500.0,0.00011232,2]
[323413554,1713973848307,-500.0,0.00011232,2]
[323413556,1713973848316,-500.0,0.00011232,2]
[323413557,1713973848325,-500.0,0.00011232,2]
[323413559,1713973848334,-500.0,0.00011232,2]
[323413561,1713973848344,-2572.82,0.00011232,2]
[323413563,1713973848353,-224.33588216,0.00011232,2]
[323413566,1713973848362,-500.0,0.00011232,2]
[323413568,1713973848371,-1436.45,0.00011232,2]
[323413570,1713973848383,-2295.35,0.00011232,2]
[323413572,1713973848392,-500.0,0.00011232,2]
[323413574,1713973848401,-500.0,0.00011232,2]
[323413576,1713973848410,-2029.6,0.00011232,2]
[323413578,1713973848418,-500.0,0.00011232,2]
[323413580,1713973848428,-500.0,0.00011232,2]
[323413582,1713973848437,-500.0,0.00011232,2]
[323413584,1713973848448,-8677.54,0.00011232,2]
[323413586,1713973848457,-905.45,0.00011232,2]
[323413588,1713973848467,-500.0,0.00011232,2]
[323413590,1713973848476,-500.0,0.00011232,2]
[323413592,1713973848485,-558.24,0.00011232,2]
[323413594,1713973848495,-500.0,0.00011232,2]
[323413596,1713973848504,-500.0,0.00011232,2]
[323413598,1713973848513,-1504.58,0.00011232,2]
[323413600,1713973848522,-500.0,0.00011232,2]
[323413602,1713973848531,-514.67,0.00011232,2]
[323413604,1713973848540,-500.0,0.00011232,2]
[323413606,1713973848549,-500.0,0.00011232,2]
[323413608,1713973848558,-500.0,0.00011232,2]
[323413610,1713973848567,-2367.93,0.00011232,2]
[323413612,1713973848576,-500.0,0.00011232,2]
[323413614,1713973848585,-2049.01,0.00011232,2]
[323413616,1713973848594,-563.66,0.00011232,2]
[323413618,1713973848603,-500.0,0.00011232,2]
[323413619,1713973848612,-500.0,0.00011232,2]
[323413621,1713973848623,-831.05,0.00011232,2]
[323413623,1713973848634,-832.5,0.00011232,2]
[323413626,1713973848643,-1885.66,0.00011232,2]
[323413628,1713973848653,-500.0,0.00011232,2]
[323413630,1713973848662,-773.07,0.00011232,2]
[323413632,1713973848672,-311.67,0.00011232,2]
[323413634,1713973848681,-500.0,0.00011232,2]
[323413636,1713973848690,-1067.22,0.00011232,2]
[323413638,1713973848699,-500.0,0.00011232,2]
[323413640,1713973848709,-500.0,0.00011232,2]
[323413641,1713973848719,-1225.98,0.00011232,2]
[323413644,1713973848729,-4156.64,0.00011232,2]
[323413646,1713973848738,-1912.6,0.00011232,2]
[323413648,1713973848748,-500.0,0.00011232,2]
[323413650,1713973848758,-2203.2,0.00011232,2]
[323413651,1713973848768,-880.27,0.00011232,2]
[323413654,1713973848780,-3146.1,0.00011232,2]
[323413656,1713973848789,-1078.5,0.00011232,2]
[323413658,1713973848799,-705.82,0.00011232,2]
[323413659,1713973848809,-500.0,0.00011232,2]
[323413662,1713973848818,-500.0,0.00011232,2]
[323413663,1713973848827,-3820.63,0.00011232,2]
[323413666,1713973848837,-500.0,0.00011232,2]
[323413668,1713973848846,-2113.48,0.00011232,2]
[323413669,1713973848855,-500.0,0.00011232,2]
[323413671,1713973848865,-838.0,0.00011232,2]
[323413673,1713973848874,-1931.43,0.00011232,2]
[323413676,1713973848884,-2703.75,0.00011232,2]
[323413678,1713973848894,-2822.26,0.00011232,2]
[323413680,1713973848903,-2276.67,0.00011232,2]
[323413682,1713973848911,-500.0,0.00011232,2]
[323413684,1713973848920,-500.0,0.00011232,2]
[323413685,1713973848929,-500.0,0.00011232,2]
[323413687,1713973848939,-500.0,0.00011232,2]
[323413689,1713973848948,-570.66,0.00011232,2]
[323413691,1713973848957,-500.0,0.00011232,2]
[323413693,1713973848966,-548.12,0.00011232,2]
[323413695,1713973848975,-1592.29,0.00011232,2]
[323413698,1713973848985,-3059.74,0.00011232,2]
[323413699,1713973848994,-500.0,0.00011232,2]
[323413701,1713973849003,-500.0,0.00011232,2]
[323413703,1713973849013,-2461.5,0.00011232,2]
[323413706,1713973849022,-615.38,0.00011232,2]
[323413707,1713973849031,-1324.12,0.00011232,2]
[323413710,1713973849040,-3971.12,0.00011232,2]
[323413712,1713973849050,-500.0,0.00011232,2]
[323413714,1713973849059,-2626.7,0.00011232,2]
[323413716,1713973849069,-723.69,0.00011232,2]
[323413717,1713973849080,-13126.48,0.00011232,2]
[323413719,1713973849090,-500.0,0.00011232,2]
[323413722,1713973849099,-614.22,0.00011232,2]
[323413724,1713973849109,-4645.68,0.00011232,2]
[323413725,1713973849118,-11122.29,0.00011232,2]
[323413727,1713973849130,-500.0,0.00011232,2]
[323413729,1713973849141,-506.68,0.00011232,2]
[323413731,1713973849150,-562.53,0.00011232,2]
[323413734,1713973849160,-2271.05,0.00011232,2]
[323413736,1713973849169,-500.0,0.00011232,2]
[323413738,1713973849178,-1405.08,0.00011232,2]
[323413739,1713973849188,-867.56,0.00011232,2]
[323413741,1713973849197,-275.64,0.00011232,2]
[323413744,1713973849207,-743.5,0.00011232,2]
[323413745,1713973849216,-500.0,0.00011232,2]
[323413746,1713973849225,-1234.4,0.00011232,2]
[323413747,1713973849233,-8796.92,0.00011232,2]
[323413748,1713973849243,-500.0,0.00011232,2]
[323413749,1713973849252,-1738.01,0.00011232,2]
[323413750,1713973849261,-630.54024901,0.00011232,2]
[323413751,1713973849270,-1578.64,0.00011232,2]
[323413752,1713973849278,-1828.37,0.00011232,2]
[323413753,1713973849287,-500.0,0.00011232,2]
[323413754,1713973849296,-500.0,0.00011232,2]
[323413755,1713973849305,-9330.53,0.00011232,2]
[323413756,1713973849314,-795.52,0.00011232,2]
[323413758,1713973849322,-373.95,0.00011232,2]
[323413759,1713973849331,-3280.03,0.00011232,2]
[323413761,1713973849340,-1090.54,0.00011232,2]
[323413763,1713973849349,-1095.8,0.00011232,2]
[323413765,1713973849358,-527.3,0.00011232,2]
[323413767,1713973849367,-5837.67,0.00011232,2]
[323413769,1713973849376,-500.0,0.00011232,2]
[323413771,1713973849387,-878.78,0.00011232,2]
[323413773,1713973849396,-4350.58,0.00011232,2]
[323413775,1713973849405,-2413.37,0.00011232,2]
[323413777,1713973849413,-10692.15,0.00011232,2]
[323413779,1713973849423,-500.0,0.00011232,2]
[323413781,1713973849432,-500.0,0.00011232,2]
[323413783,1713973849441,-500.0,0.00011232,2]
[323413785,1713973849450,-2457.4,0.00011232,2]
[323413787,1713973849459,-5368.24,0.00011232,2]
[323413789,1713973849468,-1695.31,0.00011232,2]
[323413791,1713973849477,-11377.06,0.00011232,2]
[323413793,1713973849488,-809.12,0.00011232,2]
[323413795,1713973849497,-2886.54,0.00011232,2]
[323413797,1713973849506,-1930.29,0.00011232,2]
[323413799,1713973849515,-4022.2,0.00011232,2]
[323413801,1713973849523,-500.0,0.00011232,2]
[323413803,1713973849532,-4740.44,0.00011232,2]
[323413805,1713973849541,-1781.75,0.00011232,2]
[323413807,1713973849550,-1741.92,0.00011232,2]
[323413809,1713973849559,-7921.2,0.00011232,2]
[323413811,1713973849568,-5590.58,0.00011232,2]
[323413813,1713973849577,-1092.68,0.00011232,2]
[323413815,1713973849586,-2482.67,0.00011232,2]
[323413817,1713973849595,-707.08,0.00011232,2]
[323413819,1713973849604,-731.57,0.00011232,2]
[323413821,1713973849613,-500.0,0.00011232,2]
[323413823,1713973849622,-601.86,0.00011232,2]
[323413825,1713973849632,-706.86,0.00011232,2]
[323413827,1713973849641,-500.0,0.00011232,2]
[323413829,1713973849650,-521.04,0.00011232,2]
[323413831,1713973849659,-1326.14,0.00011232,2]
[323413833,1713973849668,-500.0,0.00011232,2]
[323413835,1713973849677,-905.06,0.00011232,2]
[323413837,1713973849686,-2148.12,0.00011232,2]
[323413839,1713973849695,-500.0,0.00011232,2]
[323413841,1713973849705,-500.0,0.00011232,2]
[323413843,1713973849713,-486.17331174,0.00011232,2]
[323413845,1713973849723,-5074.84,0.00011232,2]
[323413847,1713973849733,-8100.5,0.00011232,2]
[323413849,1713973849743,-500.0,0.00011232,2]
[323413851,1713973849752,-547.33,0.00011232,2]
[323413853,1713973849762,-3326.55,0.00011232,2]
[323413854,1713973849771,-1602.14,0.00011232,2]
[323413856,1713973849781,-500.0,0.00011232,2]
[323413859,1713973849791,-4497.56,0.00011232,2]
[323413860,1713973849801,-3026.64,0.00011232,2]
[323413862,1713973849810,-2052.23,0.00011232,2]
[323413865,1713973849820,-9822.69,0.00011232,2]
[323413866,1713973849829,-4405.07,0.00011232,2]
[323413868,1713973849839,-500.0,0.00011232,2]
[323413870,1713973849849,-717.53,0.00011232,2]
[323413872,1713973849859,-2098.14,0.00011232,2]
[323413874,1713973849869,-2191.42,0.00011232,2]
[323413876,1713973849878,-500.0,0.00011232,2]
[323413878,1713973849887,-5797.1,0.00011232,2]
[323413880,1713973849896,-2435.72,0.00011232,2]
[323413882,1713973849905,-1057.35,0.00011232,2]
[323413884,1713973849915,-527.14,0.00011232,2]
[323413886,1713973849924,-2137.67,0.00011232,2]
[323413888,1713973849934,-1518.64,0.00011232,2]
[323413890,1713973849943,-1185.13,0.00011232,2]
[323413892,1713973849953,-309.41,0.00011232,2]
[323413895,1713973849964,-1109.54,0.00011232,2]
[323413897,1713973849973,-500.0,0.00011232,2]
[323413899,1713973849983,-621.43,0.00011232,2]
[323413901,1713973849993,-3781.82,0.00011232,2]
[323413903,1713973850004,-500.0,0.00011232,2]
[323413905,1713973850013,-2275.33,0.00011232,2]
[323413907,1713973850023,-527.32,0.00011232,2]
[323413909,1713973850033,-500.0,0.00011232,2]
[323413910,1713973850042,-1281.6,0.00011232,2]
[323413912,1713973850052,-555.23,0.00011232,2]
[323413914,1713973850062,-1388.93,0.00011232,2]
[323413916,1713973850073,-6060.52,0.00011232,2]
[323413918,1713973850085,-2236.66,0.00011232,2]
[323413921,1713973850099,-2081.12,0.00011232,2]
[323413922,1713973850108,-2902.5,0.00011232,2]
[323413924,1713973850118,-500.0,0.00011232,2]
[323413926,1713973850130,-500.0,0.00011232,2]
[323413929,1713973850141,-500.0,0.00011232,2]
[323413931,1713973850151,-500.0,0.00011232,2]
[323413932,1713973850163,-4287.31,0.00011232,2]
[323413935,1713973850173,-500.0,0.00011232,2]
[323413936,1713973850183,-1058.46,0.00011232,2]
[323413939,1713973850193,-500.0,0.00011232,2]
[323413941,1713973850203,-1732.94,0.00011232,2]
[323413942,1713973850213,-8648.42,0.00011232,2]
[323413944,1713973850222,-2875.89,0.00011232,2]
[323413946,1713973850232,-500.0,0.00011232,2]
[323413949,1713973850242,-3362.06,0.00011232,2]
[323413950,1713973850252,-1128.64,0.00011232,2]
[323413952,1713973850261,-500.0,0.00011232,2]
[323413955,1713973850270,-500.0,0.00011232,2]
[323413957,1713973850280,-1102.28,0.00011232,2]
[323413958,1713973850290,-3321.44,0.00011232,2]
[323413960,1713973850301,-1467.03,0.00011232,2]
[323413963,1713973850311,-7496.52,0.00011232,2]
[323413965,1713973850320,-500.0,0.00011232,2]
[323413967,1713973850330,-569.8,0.00011232,2]
[323413969,1713973850340,-500.0,0.00011232,2]
[323413971,1713973850349,-758.94,0.00011232,2]
[323413973,1713973850358,-17150.15,0.00011232,2]
[323413975,1713973850368,-912.96,0.00011232,2]
[323413977,1713973850379,-500.0,0.00011232,2]
[323413979,1713973850389,-500.0,0.00011232,2]
[323413981,1713973850398,-500.0,0.00011232,2]
[323413983,1713973850407,-1328.77,0.00011232,2]
[323413985,1713973850418,-5671.3,0.00011232,2]
[323413987,1713973850428,-1124.32,0.00011232,2]
[323413989,1713973850438,-2912.7,0.00011232,2]
[323413991,1713973850447,-558.12,0.00011232,2]
[323413993,1713973850457,-1520.14,0.00011232,2]
[323413995,1713973850467,-500.0,0.00011232,2]
[323413997,1713973850477,-500.0,0.00011232,2]
[323413999,1713973850487,-500.0,0.00011232,2]
[323414001,1713973850497,-500.0,0.00011232,2]
[323414003,1713973850506,-500.0,0.00011232,2]
[323414005,1713973850516,-500.0,0.00011232,2]
[323414007,1713973850527,-1553.07,0.00011232,2]
[323414009,1713973850537,-7940.4,0.00011232,2]
[323414011,1713973850546,-504.14,0.00011232,2]
[323414013,1713973850556,-3869.35,0.00011232,2]
[323414015,1713973850566,-170.95,0.00011232,2]
[323414017,1713973850576,-500.0,0.00011232,2]
[323414019,1713973850586,-2581.86,0.00011232,2]
[323414021,1713973850597,-532.51,0.00011232,2]
[323414023,1713973850607,-3595.17,0.00011232,2]
[323414025,1713973850616,-620.93,0.00011232,2]
[323414027,1713973850626,-500.0,0.00011232,2]
[323414028,1713973850641,-2106.5,0.00011232,2]
[323414030,1713973850651,-500.0,0.00011232,2]
[323414032,1713973850661,-7750.67,0.00011232,2]
[323414035,1713973850671,-1000.0,0.00011287,2]
[323414037,1713973850681,-1000.0,0.000115,2]
[323414039,1713973850691,-3007.56,0.00011505,2]
[323414040,1713973850701,-3007.56,0.00011505,2]
[323414042,1713973850711,-667.29,0.00011506,2]
[323414044,1713973850720,-500.0,0.00011506,2]
[323414046,1713973850730,-500.0,0.00011506,2]
[323414048,1713973850740,-500.0,0.00011506,2]
[323414051,1713973850749,-500.0,0.00011506,2]
[323414053,1713973850759,-526.08,0.00011506,2]
[323414055,1713973850769,-500.0,0.00011506,2]
[323414056,1713973850779,-949.51,0.00011506,2]
[323414058,1713973850789,-500.0,0.00011506,2]
[323414060,1713973850799,-500.0,0.00011506,2]
[323414062,1713973850808,-563.58,0.00011506,2]
[323414064,1713973850818,-500.0,0.00011506,2]
[323414066,1713973850828,-500.0,0.00011506,2]
[323414068,1713973850838,-500.0,0.00011506,2]
[323414070,1713973850849,-500.0,0.00011506,2]
[323414072,1713973850859,-500.0,0.00011506,2]
[323414074,1713973850868,-500.0,0.00011506,2]
[323414076,1713973850882,-263.7458416,0.00011506,2]
[323414079,1713973850892,-500.0,0.00011506,2]
[323414080,1713973850901,-500.0,0.00011506,2]
[323414082,1713973850911,-500.0,0.00011506,2]
[323414084,1713973850921,-478.48,0.00011506,2]
[323414087,1713973850931,-500.0,0.00011506,2]
[323414089,1713973850941,-500.0,0.00011506,2]
[323414091,1713973850951,-382.76,0.00011506,2]
[323414092,1713973850961,-820.37,0.00011506,2]
[323414094,1713973850971,-500.0,0.00011506,2]
[323414096,1713973850981,-500.0,0.00011506,2]
[323414099,1713973850991,-500.0,0.00011506,2]
[323414100,1713973851001,-500.0,0.00011506,2]
[323414102,1713973851011,-500.0,0.00011506,2]
[323414105,1713973851020,-500.0,0.00011506,2]
[323414106,1713973851030,-500.0,0.00011506,2]
[323414108,1713973851039,-500.0,0.00011506,2]
[323414110,1713973851049,-500.0,0.00011506,2]
[323414112,1713973851059,-500.0,0.00011506,2]
[323414114,1713973851069,-500.0,0.00011506,2]
[323414116,1713973851079,-500.0,0.00011506,2]
[323414118,1713973851091,-500.0,0.00011506,2]
[323414120,1713973851101,-500.0,0.00011506,2]
[323414123,1713973851111,-790.5,0.00011506,2]
[323414125,1713973851121,-500.0,0.00011506,2]
[323414127,1713973851135,-948.45,0.00011506,2]
[323414128,1713973851144,-500.0,0.00011506,2]
[323414130,1713973851154,-500.0,0.00011506,2]
[323414132,1713973851164,-500.0,0.00011506,2]
[323414135,1713973851175,-500.0,0.00011506,2]
[323414136,1713973851185,-256.98,0.00011506,2]
[323414138,1713973851194,-500.0,0.00011506,2]
[323414140,1713973851203,-500.0,0.00011506,2]
[323414142,1713973851212,-500.0,0.00011506,2]
[323414144,1713973851221,-1612.81,0.00011506,2]
[323414146,1713973851231,-540.2,0.00011506,2]
[323414148,1713973851239,-500.0,0.00011506,2]
[323414150,1713973851248,-500.0,0.00011506,2]
[323414153,1713973851258,-500.0,0.00011506,2]
[323414155,1713973851268,-711.69,0.00011506,2]
[323414156,1713973851278,-568.11,0.00011506,2]
[323414159,1713973851288,-1601.08,0.00011506,2]
[323414161,1713973851297,-568.3,0.00011506,2]
[323414163,1713973851307,-500.0,0.00011506,2]
[323414165,1713973851317,-500.0,0.00011506,2]
[323414167,1713973851325,-500.0,0.00011506,2]
[323414168,1713973851334,-500.0,0.00011506,2]
[323414170,1713973851344,-500.0,0.00011506,2]
[323414172,1713973851353,-523.14,0.00011506,2]
[323414173,1713973851362,-3252.85,0.00011506,2]
[323414174,1713973851372,-992.38,0.00011506,2]
[323414175,1713973851386,-500.0,0.00011506,2]
[323414176,1713973851395,-842.16,0.00011506,2]
[323414177,1713973851404,-500.0,0.00011506,2]
[323414178,1713973851414,-500.0,0.00011506,2]
[323414179,1713973851424,-500.0,0.00011506,2]
[323414180,1713973851433,-606.36,0.00011506,2]
[323414181,1713973851443,-1485.06,0.00011506,2]
[323414182,1713973851452,-500.0,0.00011506,2]
[323414183,1713973851461,-500.0,0.00011506,2]
[323414185,1713973851471,-717.81,0.00011506,2]
[323414187,1713973851481,-1478.51,0.00011506,2]
[323414189,1713973851491,-500.0,0.00011506,2]
[323414191,1713973851501,-500.0,0.00011506,2]
[323414193,1713973851511,-500.0,0.00011506,2]
[323414195,1713973851520,-500.0,0.00011506,2]
[323414197,1713973851529,-548.59,0.00011506,2]
[323414199,1713973851538,-500.0,0.00011506,2]
[323414201,1713973851547,-1265.7,0.00011506,2]
[323414203,1713973851556,-500.0,0.00011506,2]
[323414205,1713973851566,-500.0,0.00011506,2]
[323414207,1713973851575,-500.0,0.00011506,2]
[323414209,1713973851585,-915.02,0.00011506,2]
[323414211,1713973851594,-929.5,0.00011506,2]
[323414213,1713973851604,-276.12,0.00011506,2]
[323414215,1713973851613,-820.02,0.00011506,2]
[323414217,1713973851622,-500.0,0.00011506,2]
[323414219,1713973851638,-500.0,0.00011506,2]
[323414221,1713973851647,-500.0,0.00011506,2]
[323414223,1713973851656,-2057.46,0.00011506,2]
[323414225,1713973851666,-545.92,0.00011506,2]
[323414227,1713973851676,-500.0,0.00011506,2]
[323414229,1713973851686,-500.0,0.00011506,2]
[323414231,1713973851696,-500.0,0.00011506,2]
[323414233,1713973851706,-731.11,0.00011506,2]
[323414235,1713973851715,-500.0,0.00011506,2]
[323414237,1713973851724,-1747.26,0.00011506,2]
[323414239,1713973851734,-527.58,0.00011506,2]
[323414241,1713973851744,-750.07,0.00011506,2]
[323414243,1713973851754,-1164.73,0.00011506,2]
[323414245,1713973851763,-500.0,0.00011506,2]
[323414247,1713973851773,-500.0,0.00011506,2]
[323414249,1713973851782,-2166.34,0.00011506,2]
[323414251,1713973851792,-845.41,0.00011506,2]
[323414253,1713973851802,-500.0,0.00011506,2]
[323414255,1713973851812,-500.0,0.00011506,2]
[323414257,1713973851821,-500.0,0.00011506,2]
[323414259,1713973851831,-500.0,0.00011506,2]
[323414261,1713973851841,-500.0,0.00011506,2]
[323414262,1713973851850,-818.75,0.00011506,2]
[323414275,1713973851944,-652.43,0.00011506,2]
[323414279,1713973851993,-500.0,0.00011506,2]
[323414281,1713973852003,-871.72,0.00011506,2]
[323414283,1713973852013,-500.0,0.00011506,2]
[323414285,1713973852023,-500.0,0.00011506,2]
[323414287,1713973852032,-500.0,0.00011506,2]
[323414289,1713973852042,-500.0,0.00011506,2]
[323414291,1713973852052,-500.0,0.00011506,2]
[323414293,1713973852061,-2572.82,0.00011506,2]
[323414295,1713973852071,-500.0,0.00011506,2]
[323414297,1713973852080,-1436.45,0.00011506,2]
[323414299,1713973852093,-2295.35,0.00011506,2]
[323414301,1713973852103,-500.0,0.00011506,2]
[323414303,1713973852113,-500.0,0.00011506,2]
[323414305,1713973852123,-2029.6,0.00011506,2]
[323414307,1713973852135,-500.0,0.00011506,2]
[323414309,1713973852145,-500.0,0.00011506,2]
[323414311,1713973852155,-8677.54,0.00011506,2]
[323414313,1713973852166,-905.45,0.00011506,2]
[323414315,1713973852178,-500.0,0.00011506,2]
[323414317,1713973852188,-500.0,0.00011506,2]
[323414320,1713973852198,-558.24,0.00011506,2]
[323414322,1713973852208,-500.0,0.00011506,2]
[323414324,1713973852217,-500.0,0.00011506,2]
[323414326,1713973852226,-1504.58,0.00011506,2]
[323414328,1713973852236,-500.0,0.00011506,2]
[323414330,1713973852245,-514.67,0.00011506,2]
[323414332,1713973852254,-500.0,0.00011506,2]
[323414334,1713973852264,-500.0,0.00011506,2]
[323414336,1713973852273,-2367.93,0.00011506,2]
[323414338,1713973852283,-500.0,0.00011506,2]
[323414340,1713973852292,-2049.01,0.00011506,2]
[323414342,1713973852302,-563.66,0.00011506,2]
[323414344,1713973852311,-500.0,0.00011506,2]
[323414346,1713973852321,-831.05,0.00011506,2]
[323414348,1713973852330,-832.5,0.00011506,2]
[323414350,1713973852340,-1885.66,0.00011506,2]
[323414352,1713973852349,-500.0,0.00011506,2]
[323414354,1713973852358,-773.07,0.00011506,2]
[323414356,1713973852367,-500.0,0.00011506,2]
[323414358,1713973852377,-1067.22,0.00011506,2]
[323414360,1713973852389,-500.0,0.00011506,2]
[323414362,1713973852399,-500.0,0.00011506,2]
[323414363,1713973852408,-1225.98,0.00011506,2]
[323414365,1713973852418,-4156.64,0.00011506,2]
[323414366,1713973852427,-191.83399125,0.00011506,2]
[323414368,1713973852436,-1912.6,0.00011506,2]
[323414370,1713973852445,-2203.2,0.00011506,2]
[323414371,1713973852455,-880.27,0.00011506,2]
[323414373,1713973852465,-3146.1,0.00011506,2]
[323414375,1713973852474,-1078.5,0.00011506,2]
[323414376,1713973852483,-705.82,0.00011506,2]
[323414378,1713973852493,-500.0,0.00011506,2]
[323414379,1713973852502,-500.0,0.00011506,2]
[323414381,1713973852512,-3820.63,0.00011506,2]
[323414383,1713973852521,-500.0,0.00011506,2]
[323414384,1713973852530,-2113.48,0.00011506,2]
[323414386,1713973852539,-237.97351983,0.00011506,2]
[323414388,1713973852549,-838.0,0.00011506,2]
[323414389,1713973852558,-1931.43,0.00011506,2]
[323414391,1713973852568,-2703.75,0.00011506,2]
[323414393,1713973852578,-2822.26,0.00011506,2]
[323414394,1713973852587,-2276.67,0.00011506,2]
[323414396,1713973852596,-500.0,0.00011506,2]
[323414398,1713973852606,-500.0,0.00011506,2]
[323414399,1713973852615,-500.0,0.00011506,2]
[323414401,1713973852625,-500.0,0.00011506,2]
[323414403,1713973852636,-570.66,0.00011506,2]
[323414405,1713973852646,-500.0,0.00011506,2]
[323414406,1713973852655,-548.12,0.00011506,2]
[323414408,1713973852665,-1592.29,0.00011506,2]
[323414409,1713973852674,-3059.74,0.00011506,2]
[323414411,1713973852684,-500.0,0.00011506,2]
[323414413,1713973852693,-500.0,0.00011506,2]
[323414415,1713973852702,-2461.5,0.00011506,2]
[323414416,1713973852711,-615.38,0.00011506,2]
[323414418,1713973852721,-1324.12,0.00011506,2]
[323414420,1713973852730,-3971.12,0.00011506,2]
[323414421,1713973852739,-500.0,0.00011506,2]
[323414423,1713973852748,-2626.7,0.00011506,2]
[323414425,1713973852758,-723.69,0.00011506,2]
[323414426,1713973852767,-500.0,0.00011506,2]
[323414428,1713973852777,-13126.48,0.00011506,2]
[323414430,1713973852786,-614.22,0.00011506,2]
[323414432,1713973852796,-4645.68,0.00011506,2]
[323414433,1713973852805,-11122.29,0.00011506,2]
[323414435,1713973852815,-500.0,0.00011506,2]
[323414437,1713973852825,-506.68,0.00011506,2]
[323414439,1713973852834,-562.53,0.00011506,2]
[323414440,1713973852843,-2271.05,0.00011506,2]
[323414442,1713973852853,-1405.08,0.00011506,2]
[323414444,1713973852862,-867.56,0.00011506,2]
[323414445,1713973852871,-500.0,0.00011506,2]
[323414447,1713973852883,-1234.4,0.00011506,2]
[323414449,1713973852893,-743.5,0.00011506,2]
[323414451,1713973852902,-8796.92,0.00011506,2]
[323414453,1713973852912,-500.0,0.00011506,2]
[323414454,1713973852922,-1738.01,0.00011506,2]
[323414456,1713973852932,-1578.64,0.00011506,2]
[323414458,1713973852942,-1828.37,0.00011506,2]
[323414460,1713973852951,-500.0,0.00011506,2]
[323414461,1713973852960,-500.0,0.00011506,2]
[323414463,1713973852970,-9330.53,0.00011506,2]
[323414465,1713973852980,-795.52,0.00011506,2]
[323414467,1713973852989,-3280.03,0.00011506,2]
[323414469,1713973852998,-1090.54,0.00011506,2]